fUST/lending_fUST_20250123
["ID","MTS","AMOUNT","RATE_DAILY","PERIOD"]
[350035682,1737585047992,-151.0,0.00019178,2]
[350035683,1737585048002,-151.0,0.00019178,2]
[350035684,1737585048011,-500.0,0.00019178,2]
[350035685,1737585048020,-198.983215,0.00019178,2]
[350035686,1737585048029,-500.0,0.00019178,2]
[350035687,1737585048039,-503.02061473,0.00019178,2]
[350035688,1737585048048,-188.0,0.00019178,2]
[350035689,1737585048057,-294.62085274,0.00019178,2]
[350035690,1737585048067,-500.0,0.00019178,2]
[350035691,1737585048076,-500.0,0.00019178,2]
[350035692,1737585048085,-500.0,0.00019178,2]
[350035693,1737585048095,-642.00578803,0.00019178,2]
[350035694,1737585048105,-500.0,0.00019178,2]
[350035695,1737585048114,-151.0,0.00019178,2]
[350035697,1737585048124,-151.0,0.00019178,2]
[350035699,1737585048133,-151.0,0.00019178,2]
[350035701,1737585048143,-530.4208918,0.00019178,2]
[350035703,1737585048152,-500.0,0.00019178,2]
[350035704,1737585048161,-719.43,0.00019178,2]
[350035706,1737585048171,-96.78927926,0.00019178,2]
[350035776,1737585566703,206.18247,0.00013973,2]
[350035778,1737586045105,-162.865848,0.00018046,2]
[350035779,1737586045132,-218.83399707,0.0001813,2]
[350035861,1737586233124,-42.4110939,0.0001824,2]
[350035905,1737586237899,-5932.55320457,0.00018085,2]
[350035906,1737586237941,-2400.42566213,0.00018085,2]
[350035907,1737586237950,-375.1579061,0.0001824,2]
[350035908,1737586237959,-640.50463096,0.000189,2]
[350035909,1737586237968,-500.0,0.00018903,2]
[350035910,1737586237977,-6001.64533976,0.00019074,2]
[350035915,1737586238074,-925.20678131,0.00019074,2]
[350036131,1737586240138,-364.84446367,0.00019074,2]
[350036133,1737586240148,-300.0,0.00019099,2]
[350036135,1737586240158,-1457.88606378,0.000191,2]
[350036137,1737586240167,-230.245,0.000191,2]
[350036139,1737586240177,-313.5410801,0.000191,2]
[350036141,1737586240188,-314.9807476,0.000191,2]
[350036143,1737586240197,-215.0156227,0.000191,2]
[350036145,1737586240207,-153.0,0.000191,2]
[350036148,1737586240216,-214.5432881,0.000191,2]
[350036150,1737586240226,-155.5,0.000191,2]
[350036151,1737586240235,-957.25218645,0.000191,2]
[350036153,1737586240244,-957.25218645,0.000191,2]
[350036156,1737586240254,-156.69233808,0.000191,2]
[350036436,1737586243026,-800.55984837,0.000191,2]
[350036439,1737586243036,-957.25218645,0.000191,2]
[350036441,1737586243045,-867.59571708,0.00019167,2]
[350036443,1737586243061,-132.40428292,0.00019167,2]
[350036446,1737586243071,-727.69481546,0.00019168,2]
[350036450,1737586243099,-19272.30518454,0.00019168,2]
[350036452,1737586243108,-518.22267436,0.00019173,2]
[350036454,1737586243117,-620.37476848,0.00019173,2]
[350036456,1737586243127,-500.60598341,0.00019173,2]
[350036459,1737586243136,-500.0,0.00019173,2]
[350036461,1737586243146,-500.0,0.00019173,2]
[350036463,1737586243156,-500.0,0.00019173,2]
[350036465,1737586243165,-500.0,0.00019173,2]
[350036467,1737586243175,-245.23136529,0.00019173,2]
[350036469,1737586243185,-500.0,0.00019173,2]
[350036471,1737586243194,-500.0,0.00019173,2]
[350036473,1737586243204,-500.0,0.00019173,2]
[350036475,1737586243213,-500.0,0.00019173,2]
[350036477,1737586243223,-504.65226578,0.00019173,2]
[350036479,1737586243233,-500.0,0.00019173,2]
[350036481,1737586243242,-500.0,0.00019173,2]
[350036483,1737586243252,-500.0,0.00019173,2]
[350036485,1737586243261,-500.0,0.00019177,2]
[350036487,1737586243271,-500.0,0.00019177,2]
[350036489,1737586243280,-276.33654835,0.00019177,2]
[350036491,1737586243289,-500.0,0.00019177,2]
[350036493,1737586243299,-500.0,0.00019177,2]
[350036495,1737586243308,-250.0,0.00019177,2]
[350036497,1737586243317,-500.0,0.00019177,2]
[350036499,1737586243326,-6625.68905436,0.00019178,5]
[350036501,1737586243337,-1671.14028467,0.00019178,5]
[350036503,1737586243346,-500.0,0.00019178,2]
[350036505,1737586243356,-500.0,0.00019178,2]
[350036507,1737586243365,-200.653622,0.00019178,2]
[350036509,1737586243374,-639.04437251,0.00019178,2]
[350036511,1737586243383,-500.9208057,0.00019178,2]
[350036513,1737586243391,-500.0,0.00019178,2]
[350036515,1737586243400,-625.36256088,0.00019178,2]
[350036517,1737586243409,-500.0,0.00019178,2]
[350036519,1737586243418,-269.30526095,0.00019178,2]
[350036521,1737586243427,-500.0,0.00019178,2]
[350036523,1737586243439,-151.0,0.00019178,2]
[350036525,1737586243448,-512.69139182,0.00019178,2]
[350036527,1737586243457,-505.17318729,0.00019178,2]
[350036529,1737586243467,-500.0,0.00019178,2]
[350036531,1737586243476,-500.0,0.00019178,2]
[350036533,1737586243485,-626.3659285,0.00019178,7]
[350036535,1737586243494,-500.0,0.00019178,2]
[350036537,1737586243503,-502.04689333,0.00019178,2]
[350036539,1737586243513,-501.90681075,0.00019178,2]
[350036541,1737586243522,-151.0,0.00019178,2]
[350036543,1737586243531,-151.0,0.00019178,2]
[350036545,1737586243540,-500.0,0.00019178,2]
[350036547,1737586243549,-151.0,0.00019178,2]
[350036549,1737586243559,-151.0,0.00019178,2]
[350036551,1737586243568,-565.94,0.00019178,2]
[350036554,1737586243578,-500.0,0.00019178,2]
[350036556,1737586243587,-151.0,0.00019178,2]
[350036558,1737586243597,-151.0,0.00019178,2]
[350036560,1737586243606,-209.71803873,0.00019178,2]
[350036562,1737586243615,-500.0,0.00019178,2]
[350036564,1737586243625,-500.0,0.00019178,2]
[350036566,1737586243637,-740.79,0.00019178,2]
[350036568,1737586243647,-151.56076755,0.00019178,2]
[350036570,1737586243656,-500.0,0.00019178,2]
[350036572,1737586243666,-638.85,0.00019178,2]
[350036574,1737586243676,-151.0,0.00019178,2]
[350036576,1737586243686,-151.0,0.00019178,2]
[350036578,1737586243695,-151.0,0.00019178,2]
[350036580,1737586243703,-151.0,0.00019178,2]
[350036582,1737586243715,-500.0,0.00019178,2]
[350036584,1737586243725,-594.43,0.00019178,2]
[350036586,1737586243734,-591.05,0.00019178,2]
[350036588,1737586243743,-500.0,0.00019178,2]
[350036590,1737586243752,-500.0,0.00019178,2]
[350036592,1737586243762,-500.0,0.00019178,2]
[350036594,1737586243771,-500.0,0.00019178,2]
[350036596,1737586243779,-509.0655691,0.00019178,2]
[350036598,1737586243788,-500.0,0.00019178,2]
[350036600,1737586243798,-500.0,0.00019178,2]
[350036602,1737586243807,-502.18464219,0.00019178,2]
[350036604,1737586243816,-500.0,0.00019178,2]
[350036606,1737586243824,-637.7,0.00019178,2]
[350036608,1737586243834,-500.0,0.00019178,2]
[350036610,1737586243843,-500.0,0.00019178,2]
[350036612,1737586243852,-151.0,0.00019178,2]
[350036614,1737586243861,-500.0,0.00019178,2]
[350036616,1737586243871,-500.0,0.00019178,2]
[350036618,1737586243880,-500.0,0.00019178,2]
[350036620,1737586243889,-500.0,0.00019178,2]
[350036622,1737586243899,-500.0,0.00019178,2]
[350036624,1737586243909,-500.0,0.00019178,2]
[350036626,1737586243918,-500.0,0.00019178,2]
[350036628,1737586243928,-500.0,0.00019178,2]
[350036630,1737586243939,-500.0,0.00019178,2]
[350036632,1737586243948,-178.996634,0.00019178,2]
[350036634,1737586243957,-178.996634,0.00019178,2]
[350036636,1737586243966,-500.0,0.00019178,2]
[350036638,1737586243975,-178.996634,0.00019178,2]
[350036640,1737586243984,-178.996634,0.00019178,2]
[350036642,1737586243994,-500.0,0.00019178,2]
[350036644,1737586244003,-500.0,0.00019178,2]
[350036646,1737586244013,-151.0,0.00019178,2]
[350036648,1737586244022,-500.0,0.00019178,2]
[350036650,1737586244031,-500.0,0.00019178,2]
[350036652,1737586244040,-500.0,0.00019178,2]
[350036654,1737586244049,-500.0,0.00019178,2]
[350036656,1737586244059,-500.0,0.00019178,2]
[350036658,1737586244068,-500.0,0.00019178,2]
[350036660,1737586244077,-500.0,0.00019178,2]
[350036662,1737586244086,-469.95135462,0.00019178,2]
[350036664,1737586244095,-501.07226792,0.00019178,2]
[350036666,1737586244105,-501.52607332,0.00019178,2]
[350036668,1737586244114,-500.0,0.00019178,2]
[350036670,1737586244123,-500.0,0.00019178,2]
[350036672,1737586244136,-151.0,0.00019178,2]
[350036674,1737586244145,-151.0,0.00019178,2]
[350036676,1737586244155,-500.0,0.00019178,2]
[350036678,1737586244164,-500.0,0.00019178,2]
[350036680,1737586244174,-500.0,0.00019178,2]
[350036682,1737586244183,-500.0,0.00019178,2]
[350036684,1737586244194,-500.0,0.00019178,2]
[350036686,1737586244203,-505.14001361,0.00019178,2]
[350036688,1737586244212,-500.0,0.00019178,2]
[350036690,1737586244221,-500.0,0.00019178,2]
[350036692,1737586244231,-500.0,0.00019178,2]
[350036694,1737586244240,-500.0,0.00019178,2]
[350036696,1737586244249,-478.43558541,0.00019178,2]
[350036698,1737586244258,-500.0,0.00019178,2]
[350036700,1737586244267,-500.0,0.00019178,2]
[350036702,1737586244276,-500.0,0.00019178,2]
[350036704,1737586244285,-500.0,0.00019178,2]
[350036706,1737586244294,-500.0,0.00019178,2]
[350036708,1737586244303,-597.977809,0.00019178,2]
[350036710,1737586244313,-500.0,0.00019178,2]
[350036712,1737586244322,-364.65454569,0.00019178,2]
[350036714,1737586244331,-500.0,0.00019178,2]
[350036716,1737586244340,-500.0,0.00019178,2]
[350036718,1737586244349,-500.0,0.00019178,2]
[350036720,1737586244358,-597.977809,0.00019178,2]
[350036722,1737586244367,-500.0,0.00019178,2]
[350036724,1737586244377,-597.977809,0.00019178,2]
[350036726,1737586244386,-500.0,0.00019178,2]
[350036728,1737586244395,-500.0,0.00019178,2]
[350036731,1737586244404,-500.0,0.00019178,2]
[350036733,1737586244414,-151.0,0.00019178,2]
[350036735,1737586244423,-500.0,0.00019178,2]
[350036737,1737586244434,-184.687052,0.00019178,2]
[350036739,1737586244443,-500.0,0.00019178,2]
[350036741,1737586244453,-500.0,0.00019178,2]
[350036743,1737586244462,-500.0,0.00019178,2]
[350036745,1737586244471,-500.0,0.00019178,2]
[350036747,1737586244481,-500.0,0.00019178,2]
[350036749,1737586244490,-500.0,0.00019178,2]
[350036751,1737586244499,-500.0,0.00019178,2]
[350036753,1737586244509,-597.977809,0.00019178,2]
[350036755,1737586244518,-597.977809,0.00019178,2]
[350036757,1737586244527,-501.10330071,0.00019178,2]
[350036759,1737586244536,-597.977809,0.00019178,2]
[350036761,1737586244545,-500.0,0.00019178,2]
[350036763,1737586244555,-500.0,0.00019178,2]
[350036765,1737586244565,-500.0,0.00019178,2]
[350036767,1737586244574,-508.30798249,0.00019178,2]
[350036769,1737586244585,-500.0,0.00019178,2]
[350036771,1737586244595,-566.100769,0.00019178,2]
[350036773,1737586244604,-566.100769,0.00019178,2]
[350036775,1737586244613,-500.0,0.00019178,2]
[350036777,1737586244622,-566.100769,0.00019178,2]
[350036779,1737586244632,-500.0,0.00019178,2]
[350036781,1737586244645,-566.100769,0.00019178,2]
[350036783,1737586244654,-566.100769,0.00019178,2]
[350036785,1737586244663,-566.100769,0.00019178,2]
[350036787,1737586244673,-500.0,0.00019178,2]
[350036789,1737586244683,-500.0,0.00019178,2]
[350036802,1737586244786,-634.17691208,0.00019178,2]
[350036804,1737586244796,-500.0,0.00019178,2]
[350036806,1737586244806,-403.21072074,0.00019178,2]
[350036808,1737586244815,-151.0,0.00019178,2]
[350036810,1737586244824,-151.0,0.00019178,2]
[350036812,1737586244834,-151.0,0.00019178,2]
[350036814,1737586244843,-500.0,0.00019178,2]
[350036816,1737586244852,-500.0,0.00019178,2]
[350036818,1737586244861,-500.0,0.00019178,2]
[350036820,1737586244871,-172.97573916,0.00019178,2]
[350036822,1737586244880,-156.174436,0.00019178,2]
[350036824,1737586244890,-156.174436,0.00019178,2]
[350036826,1737586244899,-156.174436,0.00019178,2]
[350036828,1737586244908,-151.0,0.00019178,2]
[350036830,1737586244918,-151.0,0.00019178,2]
[350036832,1737586244927,-498.41143554,0.00019178,2]
[350036834,1737586244938,-500.0,0.00019178,2]
[350036836,1737586244948,-494.7571562,0.00019178,2]
[350036838,1737586244957,-156.174436,0.00019178,2]
[350036840,1737586244967,-156.174436,0.00019178,2]
[350036842,1737586244977,-156.174436,0.00019178,2]
[350036844,1737586244987,-500.0,0.00019178,2]
[350036846,1737586244996,-618.114146,0.00019178,2]
[350036848,1737586245006,-618.114146,0.00019178,2]
[350036850,1737586245015,-618.114146,0.00019178,2]
[350036852,1737586245024,-500.0,0.00019178,2]
[350036853,1737586245034,-151.0,0.00019178,2]
[350036854,1737586245043,-151.0,0.00019178,2]
[350036855,1737586245052,-151.0,0.00019178,2]
[350036856,1737586245062,-500.0,0.00019178,2]
[350036857,1737586245071,-500.0,0.00019178,2]
[350036858,1737586245080,-618.114146,0.00019178,2]
[350036859,1737586245089,-618.114146,0.00019178,2]
[350036860,1737586245099,-618.114146,0.00019178,2]
[350036861,1737586245108,-561.22,0.00019178,2]
[350036862,1737586245117,-151.0,0.00019178,2]
[350036863,1737586245127,-151.0,0.00019178,2]
[350036864,1737586245136,-151.0,0.00019178,2]
[350036865,1737586245145,-151.0,0.00019178,2]
[350036866,1737586245155,-151.0,0.00019178,2]
[350036868,1737586245164,-500.0,0.00019178,2]
[350036870,1737586245173,-766.65,0.00019178,2]
[350036872,1737586245185,-500.0,0.00019178,2]
[350036874,1737586245194,-500.0,0.00019178,2]
[350036876,1737586245203,-500.0,0.00019178,2]
[350036878,1737586245212,-1635.92,0.00019178,2]
[350036880,1737586245222,-7970.05,0.00019178,2]
[350036882,1737586245231,-500.0,0.00019178,2]
[350036884,1737586245241,-330.02579765,0.00019178,2]
[350036886,1737586245250,-151.0,0.00019178,2]
[350036888,1737586245259,-151.0,0.00019178,2]
[350036890,1737586245268,-151.0,0.00019178,2]
[350036892,1737586245277,-500.0,0.00019178,2]
[350036894,1737586245286,-2406.93,0.00019178,2]
[350036896,1737586245295,-500.0,0.00019178,2]
[350036898,1737586245305,-500.0,0.00019178,2]
[350036900,1737586245314,-689.45,0.00019178,2]
[350036902,1737586245323,-1350.54,0.00019178,2]
[350036904,1737586245332,-500.0,0.00019178,2]
[350036906,1737586245341,-250.46242938,0.00019178,2]
[350036908,1737586245351,-200.0,0.00019178,2]
[350036909,1737586245360,-503.22932378,0.00019178,2]
[350036911,1737586245369,-500.0,0.00019178,2]
[350036913,1737586245379,-151.0,0.00019178,2]
[350036915,1737586245389,-500.0,0.00019178,2]
[350036917,1737586245398,-151.0,0.00019178,2]
[350036919,1737586245408,-500.0,0.00019178,2]
[350036923,1737586245417,-500.0,0.00019178,2]
[350036924,1737586245427,-500.0,0.00019178,2]
[350036927,1737586245438,-151.0,0.00019178,2]
[350036929,1737586245448,-659.38,0.00019178,2]
[350036931,1737586245457,-151.0,0.00019178,2]
[350036932,1737586245466,-500.0,0.00019178,2]
[350036934,1737586245476,-151.0,0.00019178,2]
[350036936,1737586245485,-23138.37,0.00019178,2]
[350036938,1737586245495,-500.0,0.00019178,2]
[350036940,1737586245505,-500.0,0.00019178,2]
[350036942,1737586245514,-500.0,0.00019178,2]
[350036944,1737586245523,-500.0,0.00019178,2]
[350036946,1737586245532,-500.0,0.00019178,2]
[350036948,1737586245541,-500.0,0.00019178,2]
[350036950,1737586245551,-500.0,0.00019178,2]
[350036953,1737586245560,-500.0,0.00019178,2]
[350036956,1737586245569,-500.0,0.00019178,2]
[350036959,1737586245579,-924.19,0.00019178,2]
[350036961,1737586245588,-228.859334,0.00019178,2]
[350036963,1737586245598,-151.0,0.00019178,2]
[350036965,1737586245607,-228.859334,0.00019178,2]
[350036967,1737586245616,-151.0,0.00019178,2]
[350036969,1737586245626,-500.0,0.00019178,2]
[350036971,1737586245639,-500.0,0.00019178,2]
[350036973,1737586245649,-500.0,0.00019178,2]
[350036975,1737586245658,-228.859334,0.00019178,2]
[350036977,1737586245667,-500.0,0.00019178,2]
[350036979,1737586245676,-228.859334,0.00019178,2]
[350036981,1737586245688,-281.765309,0.00019178,2]
[350036983,1737586245698,-629.15859415,0.00019178,2]
[350036985,1737586245707,-500.62,0.00019178,2]
[350036987,1737586245718,-500.0,0.00019178,2]
[350036989,1737586245727,-500.0,0.00019178,2]
[350036991,1737586245737,-500.0,0.00019178,2]
[350036993,1737586245746,-549.66,0.00019178,2]
[350036995,1737586245755,-500.0,0.00019178,2]
[350036997,1737586245764,-500.0,0.00019178,2]
[350036999,1737586245774,-501.70284479,0.00019178,2]
[350037001,1737586245783,-500.60485919,0.00019178,2]
[350037003,1737586245792,-151.0,0.00019178,2]
[350037005,1737586245802,-151.0,0.00019178,2]
[350037007,1737586245811,-500.0,0.00019178,2]
[350037009,1737586245821,-773.12,0.00019178,2]
[350037011,1737586245830,-502.63594559,0.00019178,2]
[350037013,1737586245839,-500.0,0.00019178,2]
[350037015,1737586245849,-151.0,0.00019178,2]
[350037017,1737586245858,-500.0,0.00019178,2]
[350037019,1737586245867,-500.0,0.00019178,2]
[350037021,1737586245877,-4349.7,0.00019178,2]
[350037023,1737586245886,-500.0,0.00019178,2]
[350037025,1737586245897,-500.0,0.00019178,2]
[350037027,1737586245908,-501.75203457,0.00019178,2]
[350037030,1737586245918,-312.03546813,0.00019178,2]
[350037031,1737586245929,-301.90435702,0.00019178,2]
[350037034,1737586245939,-500.0,0.00019178,2]
[350037036,1737586245948,-501.60421726,0.00019178,2]
[350037037,1737586245958,-500.0,0.00019178,2]
[350037039,1737586245967,-500.0,0.00019178,2]
[350037042,1737586245976,-500.0,0.00019178,2]
[350037044,1737586245986,-151.0,0.00019178,2]
[350037046,1737586245995,-163.128006,0.00019178,2]
[350037048,1737586246004,-151.0,0.00019178,2]
[350037050,1737586246013,-500.0,0.00019178,2]
[350037051,1737586246023,-163.128006,0.00019178,2]
[350037054,1737586246032,-151.0,0.00019178,2]
[350037055,1737586246042,-501.09259844,0.00019178,2]
[350037057,1737586246051,-500.0,0.00019178,2]
[350037060,1737586246060,-500.0,0.00019178,2]
[350037062,1737586246070,-1375.57,0.00019178,2]
[350037064,1737586246080,-856.802444,0.00019178,2]
[350037066,1737586246089,-856.802444,0.00019178,2]
[350037068,1737586246099,-500.61208174,0.00019178,2]
[350037069,1737586246108,-500.0,0.00019178,2]
[350037071,1737586246117,-12421.47,0.00019178,2]
[350037074,1737586246128,-163.128006,0.00019178,2]
[350037076,1737586246137,-163.128006,0.00019178,2]
[350037078,1737586246147,-856.802444,0.00019178,2]
[350037080,1737586246156,-856.802444,0.00019178,2]
[350037081,1737586246165,-501.74870198,0.00019178,2]
[350037083,1737586246174,-501.89150669,0.00019178,2]
[350037086,1737586246183,-500.0,0.00019178,2]
[350037088,1737586246193,-516.51450177,0.00019178,2]
[350037090,1737586246202,-649.79648238,0.00019178,2]
[350037091,1737586246211,-617.68117515,0.00019178,2]
[350037093,1737586246220,-500.0,0.00019178,2]
[350037095,1737586246230,-903.38,0.00019178,2]
[350037098,1737586246239,-502.05219178,0.00019178,2]
[350037099,1737586246249,-1959.32,0.00019178,2]
[350037102,1737586246258,-501.01402125,0.00019178,2]
[350037104,1737586246267,-500.0,0.00019178,2]
[350037106,1737586246276,-500.0,0.00019178,2]
[350037108,1737586246286,-657.46,0.00019178,2]
[350037109,1737586246295,-170.91334746,0.00019178,2]
[350037111,1737586246304,-151.0,0.00019178,2]
[350037114,1737586246313,-257.446264,0.00019178,2]
[350037116,1737586246323,-500.0,0.00019178,2]
[350037118,1737586246332,-1649.66,0.00019178,2]
[350037120,1737586246341,-500.0,0.00019178,2]
[350037122,1737586246351,-500.0,0.00019178,2]
[350037124,1737586246360,-500.0,0.00019178,2]
[350037126,1737586246369,-500.0,0.00019178,2]
[350037128,1737586246379,-500.0,0.00019178,2]
[350037130,1737586246388,-500.0,0.00019178,2]
[350037132,1737586246397,-500.0,0.00019178,2]
[350037134,1737586246406,-670.64,0.00019178,2]
[350037136,1737586246415,-500.0,0.00019178,2]
[350037138,1737586246424,-500.0,0.00019178,2]
[350037140,1737586246433,-500.0,0.00019178,2]
[350037141,1737586246445,-500.0,0.00019178,2]
[350037143,1737586246454,-500.0,0.00019178,2]
[350037145,1737586246464,-151.0,0.00019178,2]
[350037147,1737586246473,-151.0,0.00019178,2]
[350037149,1737586246482,-151.0,0.00019178,2]
[350037151,1737586246492,-831.17,0.00019178,2]
[350037153,1737586246501,-500.0,0.00019178,2]
[350037155,1737586246510,-500.0,0.00019178,2]
[350037157,1737586246519,-500.0,0.00019178,2]
[350037160,1737586246529,-500.0,0.00019178,2]
[350037161,1737586246538,-500.0,0.00019178,2]
[350037164,1737586246548,-453.55021917,0.00019178,2]
[350037166,1737586246557,-500.0,0.00019178,2]
[350037168,1737586246567,-6148.59,0.00019178,2]
[350037170,1737586246576,-500.0,0.00019178,2]
[350037172,1737586246585,-500.0,0.00019178,2]
[350037174,1737586246594,-500.0,0.00019178,2]
[350037176,1737586246603,-163.26291,0.00019178,2]
[350037178,1737586246612,-163.26291,0.00019178,2]
[350037180,1737586246622,-163.26291,0.00019178,2]
[350037182,1737586246631,-500.0,0.00019178,2]
[350037184,1737586246645,-151.0,0.00019178,2]
[350037186,1737586246654,-151.0,0.00019178,2]
[350037188,1737586246663,-163.26291,0.00019178,2]
[350037190,1737586246672,-151.0,0.00019178,2]
[350037191,1737586246682,-163.26291,0.00019178,2]
[350037194,1737586246694,-163.26291,0.00019178,2]
[350037196,1737586246703,-500.0,0.00019178,2]
[350037197,1737586246713,-870.58,0.00019178,2]
[350037199,1737586246722,-151.0,0.00019178,2]
[350037201,1737586246732,-151.0,0.00019178,2]
[350037204,1737586246741,-151.0,0.00019178,2]
[350037205,1737586246750,-500.0,0.00019178,2]
[350037207,1737586246759,-500.0,0.00019178,2]
[350037209,1737586246768,-595.91,0.00019178,2]
[350037211,1737586246778,-1421.42,0.00019178,2]
[350037214,1737586246787,-500.0,0.00019178,2]
[350037216,1737586246797,-525.67,0.00019178,2]
[350037218,1737586246808,-500.0,0.00019178,2]
[350037219,1737586246817,-500.0,0.00019178,2]
[350037221,1737586246826,-500.0,0.00019178,2]
[350037223,1737586246836,-1279.52,0.00019178,2]
[350037226,1737586246846,-1369.39,0.00019178,2]
[350037238,1737586246957,-500.0,0.00019178,2]
[350037240,1737586246966,-1150.98,0.00019178,2]
[350037242,1737586246976,-579.46,0.00019178,2]
[350037244,1737586246985,-151.0,0.00019178,2]
[350037246,1737586246994,-151.0,0.00019178,2]
[350037248,1737586247004,-500.0,0.00019178,2]
[350037250,1737586247014,-151.0,0.00019178,2]
[350037252,1737586247023,-151.0,0.00019178,2]
[350037254,1737586247033,-151.0,0.00019178,2]
[350037256,1737586247042,-500.0,0.00019178,2]
[350037259,1737586247052,-151.0,0.00019178,2]
[350037261,1737586247061,-151.0,0.00019178,2]
[350037263,1737586247070,-500.0,0.00019178,2]
[350037264,1737586247079,-500.0,0.00019178,2]
[350037266,1737586247088,-500.0,0.00019178,2]
[350037269,1737586247098,-151.0,0.00019183,2]
[350037271,1737586247108,-151.0,0.00019183,2]
[350037273,1737586247117,-228.859334,0.00019183,2]
[350037275,1737586247127,-151.0,0.00019183,2]
[350037277,1737586247136,-228.859334,0.00019183,2]
[350037279,1737586247145,-152.767249,0.00019183,2]
[350037281,1737586247154,-163.128006,0.00019183,2]
[350037283,1737586247163,-856.802444,0.00019183,2]
[350037284,1737586247173,-163.128006,0.00019183,2]
[350037286,1737586247182,-856.802444,0.00019183,2]
[350037289,1737586247194,-555.39557829,0.00019183,2]
[350037291,1737586247203,-467.96340078,0.00019198,2]
[350037292,1737586247212,-151.0,0.00019198,2]
[350037294,1737586247222,-151.0,0.00019198,2]
[350037297,1737586247232,-500.0,0.00019198,3]
[350037299,1737586247241,-151.0,0.00019198,2]
[350037300,1737586247250,-151.0,0.00019198,2]
[350037303,1737586247260,-203.02166416,0.00019199,2]
[350037304,1737586247269,-500.0,0.00019199,2]
[350037306,1737586247278,-412.72422835,0.00019199,2]
[350037308,1737586247287,-151.0,0.00019199,2]
[350037311,1737586247297,-178.996634,0.00019199,2]
[350037312,1737586247306,-178.996634,0.00019199,2]
[350037314,1737586247315,-151.0,0.00019199,2]
[350037316,1737586247324,-151.0,0.00019199,2]
[350037318,1737586247334,-319534.5053886,0.000192,15]
[350037339,1737586247509,-1242.44641461,0.000191,2]
[350037400,1737586698604,204.125454,0.00013973,2]
[350037433,1737586953305,160.0,0.0002293,120]
[350037436,1737587010573,160.0,0.00021655,120]
[350037437,1737587191294,160.0,0.00023312,120]
[350037438,1737587251288,160.0,0.00022522,120]
[350037439,1737587310715,56.85,0.00021933,120]
[350037440,1737587310736,103.15,0.00021933,120]
[350037441,1737587370698,160.0,0.00023197,120]
[350037506,1737587437723,-291.706,0.00017297,2]
[350037508,1737587437733,-291.706,0.00017642,2]
[350037510,1737587437742,-300.0,0.00017831,2]
[350037512,1737587437751,-1716.588,0.00017832,2]
[350037514,1737587437763,-360.41287851,0.00017832,2]
[350037516,1737587437778,-22822.99912149,0.00017832,2]
[350037518,1737587437788,-1746.5820214,0.00018023,2]
[350037520,1737587437799,-240.187484,0.0001804,2]
[350037523,1737587437809,-421.881,0.0001824,2]
[350037525,1737587437819,-500.0,0.00018903,2]
[350037528,1737587437828,-153.0,0.00019,2]
[350037530,1737587437838,-153.0,0.00019,2]
[350037533,1737587437848,-153.0,0.00019,2]
[350037535,1737587437857,-1683.22951238,0.00019028,2]